bitfinex/quotes_ETHUSD_20220311
["timestamp","ask_amount","ask_price","bid_price","bid_amount"]
[1646997205135,1.152,2597.0,2596.9,65.1919209]
[1646997206372,1.152,2597.0,2596.9,64.29175347]
[1646997207374,2001.152,2597.0,2596.9,68.66119139]
[1646997207573,2001.152,2597.0,2596.9,68.86582039]
[1646997207978,2001.152,2597.0,2596.9,70.4768893]
[1646997208178,2001.152,2597.0,2596.9,127.99173743]
[1646997208373,2001.152,2597.0,2596.9,57.00017171]
[1646997208577,2001.152,2597.0,2596.9,78.80445711]
[1646997208774,2001.152,2597.0,2596.9,82.30445711]
[1646997209092,2001.152,2597.0,2596.9,175.49838748]
[1646997209276,2001.152,2597.0,2596.9,152.17707571]
[1646997209475,2001.152,2597.0,2596.9,165.70071034]
[1646997209675,2001.152,2597.0,2596.9,170.79500271]
[1646997209876,2001.152,2597.0,2596.9,163.1290153]
[1646997210128,2001.152,2597.0,2596.9,101.23957437]
[1646997210327,2001.152,2597.0,2596.9,63.03085766]
[1646997210531,2001.152,2597.0,2596.9,35.38853033]
[1646997210724,2001.152,2597.0,2596.9,21.12328472]
[1646997210927,2001.152,2597.0,2596.9,20.22821872]
[1646997211125,2001.152,2597.0,2596.9,22.37698872]
[1646997211327,2001.152,2597.0,2596.9,25.76760472]
[1646997211627,2001.152,2597.0,2596.9,21.32389205]
[1646997211825,2001.152,2597.0,2596.9,22.12389205]
[1646997212026,2001.152,2597.0,2596.9,16.32464232]
[1646997212228,2001.152,2597.0,2596.9,18.25619839]
[1646997212423,2001.152,2597.0,2596.9,16.28970076]
[1646997212625,2001.152,2597.0,2596.9,23.88244698]
[1646997212826,2001.152,2597.0,2596.9,30.40552698]
[1646997213225,2001.152,2597.0,2596.9,31.72552298]
[1646997213626,2001.152,2597.0,2596.9,23.79964498]
[1646997213873,2001.152,2597.0,2596.9,12.06552098]
[1646997214072,2001.152,2597.0,2596.9,12.03782198]
[1646997214271,2001.152,2597.0,2596.9,12.13246798]
[1646997214472,2001.152,2597.0,2596.9,17.57052298]
[1646997214672,2001.152,2597.0,2596.9,23.88246798]
[1646997214873,2001.152,2597.0,2596.9,23.80552298]
[1646997215074,2001.152,2597.0,2596.9,25.28321498]
[1646997215274,2001.152,2597.0,2596.9,26.78133698]
[1646997215577,2001.152,2597.0,2596.9,13.03133698]
[1646997215974,2001.152,2597.0,2596.9,16.78333698]
[1646997216175,2001.152,2597.0,2596.9,30.44521298]
[1646997216379,2001.152,2597.0,2596.9,31.89121498]
[1646997216575,2001.152,2597.0,2596.9,31.44533698]
[1646997216775,2001.152,2597.0,2596.9,24.86416198]
[1646997216974,2001.152,2597.0,2596.9,32.94416198]
[1646997217176,2001.152,2597.0,2596.9,24.87028198]
[1646997217377,2001.152,2597.0,2596.9,30.49333698]
[1646997217620,2001.152,2597.0,2596.9,24.86716198]
[1646997217818,2001.152,2597.0,2596.9,13.11416198]
[1646997218021,2001.152,2597.0,2596.9,26.38339198]
[1646997218223,2001.152,2597.0,2596.9,24.54579198]
[1646997218419,2001.152,2597.0,2596.9,12.80173698]
[1646997218721,2001.152,2597.0,2596.9,5.51666798]
[1646997219124,2001.152,2597.0,2596.9,6.32273761]
[1646997219322,2001.152,2597.0,2596.9,6.51666798]
[1646997219524,2001.152,2597.0,2596.9,5.51666798]
[1646997219724,2001.152,2597.0,2596.9,10.52861798]
[1646997220125,2001.152,2597.0,2596.9,5.32273761]
[1646997220525,2001.152,2597.0,2596.9,5.51666798]
[1646997220731,2001.152,2597.0,2596.9,5.32273761]
[1646997221125,2001.152,2597.0,2596.9,10.53161798]
[1646997221367,2001.152,2597.0,2596.9,13.30561798]
[1646997221568,2001.152,2597.0,2596.9,4.32273761]
[1646997221766,2001.152,2597.0,2596.9,9.52961798]
[1646997221967,2001.152,2597.0,2596.9,4.51666798]
[1646997222171,2001.152,2597.0,2596.9,27.38699998]
[1646997222368,2001.152,2597.0,2596.9,18.22792798]
[1646997222568,2001.152,2597.0,2596.9,18.29899998]
[1646997222770,2001.152,2597.0,2596.9,18.30899798]
[1646997222969,2001.152,2597.0,2596.9,21.66199998]
[1646997223169,2001.152,2597.0,2596.9,11.73762798]
[1646997223372,2001.152,2597.0,2596.9,4.32273761]
[1646997224574,2001.152,2597.0,2596.9,9.33368761]
[1646997224774,2001.152,2597.0,2596.9,4.32273761]
[1646997225031,2001.22965,2597.0,2596.9,4.32273761]
[1646997225824,2001.22965,2597.0,2596.9,7.59368761]
[1646997226027,2001.22965,2597.0,2596.9,4.32273761]
[1646997226424,2001.22965,2597.0,2596.9,8.85968761]
[1646997226624,2001.22965,2597.0,2596.9,4.32273761]
[1646997228026,2001.61385,2597.0,2596.9,4.32273761]
[1646997229674,2001.61385,2597.0,2596.9,3.68854583]
[1646997229876,2001.61385,2597.0,2596.9,3.67854583]
[1646997230075,2001.61385,2597.0,2596.9,3.90250905]
[1646997230675,2001.61385,2597.0,2596.9,2.68854583]
[1646997231076,2001.61385,2597.0,2596.9,2.87019593]
[1646997232529,2001.61385,2597.0,2596.6,17.54036554]
[1646997232530,0.01,2596.9,2596.6,17.54036554]
[1646997232722,1.5362,2596.8,2596.6,17.69628728]
[1646997234123,1.5362,2596.8,2596.7,1.0]
[1646997234327,1.53999049,2596.8,2596.7,1.3]
[1646997234524,0.00379049,2596.8,2596.7,1.3]
[1646997235127,1.5462,2596.9,2596.7,1.3]
[1646997235524,1.54999045,2596.9,2596.7,1.3]
[1646997235724,0.07336359,2596.8,2596.7,1.3]
[1646997235925,0.07336359,2596.8,2596.7,1.31]
[1646997240328,1.01739762,2596.8,2596.7,1.31]
[1646997240928,1.40159762,2596.8,2596.7,1.31]
[1646997241128,1.01739762,2596.8,2596.7,1.31]
[1646997241529,1.01739762,2596.8,2596.7,1.3]
[1646997242134,1.01739762,2596.8,2596.7,1.31]
[1646997242935,1.01739762,2596.8,2596.7,1.3]
[1646997243336,0.00379585,2596.9,2596.7,1.31]
[1646997243536,1.09504762,2597.0,2596.7,1.31]
[1646997243771,0.00379585,2596.9,2596.7,1.31]
[1646997244776,1.09504762,2597.0,2596.7,1.31]
[1646997244777,0.07765,2597.0,2596.7,1.31]
[1646997244977,0.00379581,2596.9,2596.7,1.31]
[1646997246078,1.01360182,2597.0,2596.7,1.31]
[1646997246278,0.672925,2597.0,2596.9,3.0]
[1646997246478,0.672925,2597.0,2596.9,3.471]
[1646997246678,0.672925,2597.0,2596.9,1.771]
[1646997246881,0.672925,2597.0,2596.9,1.96852893]
[1646997247078,0.672925,2597.0,2596.9,0.96852893]
[1646997248830,0.672925,2597.0,2596.9,1.54168204]
[1646997249229,0.672925,2597.0,2596.9,4.77831627]
[1646997249433,0.672925,2597.0,2596.9,1.54168204]
[1646997249630,0.672925,2597.0,2596.9,2.54168204]
[1646997249831,0.672925,2597.0,2596.9,1.54168204]
[1646997250032,0.672925,2597.0,2596.9,2.54168204]
[1646997250230,0.672925,2597.0,2596.9,1.54168204]
[1646997251673,0.672925,2597.0,2596.9,2.53168204]
[1646997251875,0.672925,2597.0,2596.9,3.53168204]
[1646997252575,0.672925,2597.0,2596.9,3.54168204]
[1646997261981,0.003791,2597.1,2597.0,3.0]
[1646997262184,1.156791,2597.1,2597.0,3.771]
[1646997262385,0.85223026,2597.1,2597.0,104.96493037]
[1646997262628,4.6191,2597.6,2597.1,3.5]
[1646997262828,1.2095,2597.6,2597.2,0.461]
[1646997263027,1.2095,2597.6,2597.2,0.771]
[1646997263228,7.03365581,2598.1,2597.3,0.21240743]
[1646997263427,8.24315581,2598.1,2597.3,0.68340743]
[1646997264331,0.00166192,2597.8,2597.3,0.68340743]
[1646997265132,8.24315581,2598.1,2597.3,0.68340743]
[1646997265534,0.00410632,2597.7,2597.3,0.68340743]
[1646997265734,0.97787093,2597.7,2597.3,0.68340743]
[1646997266374,7.0976,2598.1,2597.3,0.68340743]
[1646997266774,0.00410637,2597.6,2597.3,0.68340743]
[1646997267577,1.07859562,2597.9,2597.3,0.68340743]
[1646997267978,0.00410642,2597.6,2597.3,0.68340743]
[1646997268878,5.4345232,2598.0,2597.3,0.68340743]
[1646997269077,0.00410642,2597.6,2597.3,0.68340743]
[1646997270128,1.11261673,2597.9,2597.3,0.68340743]
[1646997270525,0.00406022,2597.6,2597.3,0.68340743]
[1646997271322,0.07868069,2597.8,2597.3,0.68340743]
[1646997271523,0.00406022,2597.6,2597.3,0.68340743]
[1646997272523,0.07868069,2597.8,2597.3,0.68340743]
[1646997272729,0.00406022,2597.6,2597.3,0.68340743]
[1646997273773,0.00377143,2597.6,2597.3,0.68340743]
[1646997274777,0.07868069,2597.8,2597.3,0.68340743]
[1646997274979,0.00377143,2597.6,2597.3,0.68340743]
[1646997275178,0.00377143,2597.6,2597.3,2.60705743]
[1646997275382,0.00377143,2597.6,2597.4,0.3]
[1646997275580,0.00377143,2597.6,2597.5,0.96183]
[1646997275778,0.00377143,2597.6,2597.5,0.97183]
[1646997275979,0.07868069,2597.8,2597.5,0.97183]
[1646997276280,0.00377135,2597.7,2597.5,0.97183]
[1646997277179,0.07868069,2597.8,2597.5,0.97183]
[1646997277626,0.0037908,2597.7,2597.5,0.97183]
[1646997278426,0.07216235,2597.9,2597.5,0.97183]
[1646997278625,0.0037908,2597.7,2597.5,0.97183]
[1646997279028,0.0037908,2597.7,2597.5,1.27183]
[1646997279629,0.07216235,2597.9,2597.5,1.27183]
[1646997279828,0.0037908,2597.7,2597.5,1.27183]
[1646997280830,0.07216235,2597.9,2597.5,1.27183]
[1646997281033,0.00378948,2597.7,2597.5,1.27183]
[1646997282079,0.07216235,2597.9,2597.5,1.27183]
[1646997282280,0.00378948,2597.7,2597.5,1.27183]
[1646997282881,0.07216235,2597.9,2597.6,0.461]
[1646997283081,0.07216235,2597.9,2597.6,0.68125365]
[1646997283288,0.07216235,2597.9,2597.6,0.98125365]
[1646997283481,0.07216235,2597.9,2597.7,0.9617]
[1646997283685,0.07216235,2597.9,2597.7,1.4327]
[1646997284884,3.6440232,2598.1,2597.7,1.4327]
[1646997285130,3.6440232,2598.1,2597.7,1.4227]
[1646997285131,0.07980109,2598.0,2597.7,1.4227]
[1646997285329,0.07980109,2598.0,2597.7,1.4327]
[1646997285533,0.07980109,2598.0,2597.9,1.0]
[1646997285730,0.07980109,2598.0,2597.9,1.771]
[1646997286330,0.07980109,2598.0,2597.9,1.471]
[1646997287134,0.07980109,2598.0,2597.9,1.01]
[1646997288035,0.07980109,2598.0,2597.9,1.0]
[1646997292832,0.94059642,2598.0,2597.9,1.0]
[1646997293031,7.91985488,2598.0,2597.8,2.88496]
[1646997293232,0.07755178,2597.9,2597.8,2.88496]
[1646997293935,0.07755178,2597.9,2597.8,2.89496]
[1646997294135,0.07755178,2597.9,2597.8,3.88496]
[1646997296137,0.07755178,2597.9,2597.8,3.55636]
[1646997301446,0.07755178,2597.9,2597.5,0.16436399]
[1646997301447,3.97925846,2597.9,2597.5,0.16436399]
[1646997301638,4.36962885,2598.0,2597.4,2.9239]
[1646997301639,3.0,2597.7,2597.4,2.9239]
[1646997301837,0.07767311,2597.8,2597.4,2.9239]
[1646997302041,0.07767311,2597.8,2597.4,3.14158772]
[1646997302042,3.0,2597.5,2597.4,3.14158772]
[1646997302339,3.07386545,2597.5,2597.4,2.9239]
[1646997302942,0.00378626,2597.8,2597.4,2.9239]
[1646997303143,3.0,2597.5,2597.4,2.9239]
[1646997303341,3.07436296,2597.5,2597.4,2.9239]
[1646997303541,3.07436296,2597.5,2597.4,3.14031313]
[1646997303782,3.0,2597.5,2597.4,3.14031313]
[1646997304485,0.00377574,2597.8,2597.4,3.14031313]
[1646997304685,0.00377574,2597.8,2597.4,3.45031313]
[1646997304887,3.0,2597.9,2597.4,3.45031313]
[1646997305086,0.00377583,2597.8,2597.4,3.45031313]
[1646997305286,3.0,2597.7,2597.6,0.96191]
[1646997306085,2.3157,2598.3,2597.6,1.96191]
[1646997306288,0.00377586,2597.8,2597.6,1.96191]
[1646997306590,0.00377586,2597.8,2597.6,1.97191]
[1646997306786,3.0,2597.7,2597.6,1.97191]
[1646997306988,3.0,2597.7,2597.6,1.96191]
[1646997307187,3.0,2597.7,2597.6,1.97191]
[1646997308631,3.0,2597.7,2597.6,2.56044193]
[1646997309241,5.29233984,2597.7,2597.6,2.56044193]
[1646997309937,5.29233984,2597.7,2597.6,2.55044193]
[1646997311139,2.29233984,2597.7,2597.6,2.55044193]
[1646997312993,2.29233984,2597.7,2597.6,2.56044193]
[1646997313794,2.37818934,2597.7,2597.6,2.56044193]
[1646997317048,3.0,2598.1,2597.6,2.86044193]
[1646997317244,0.00352116,2597.8,2597.7,0.20422412]
[1646997317745,0.00352116,2597.8,2597.7,1.20422412]
[1646997318143,3.0,2598.1,2597.7,2.16589412]
[1646997318348,3.0,2598.1,2597.8,1.92324]
[1646997318349,0.00352138,2597.9,2597.8,1.92324]
[1646997318543,0.00352138,2597.9,2597.8,2.23324]
[1646997318789,3.0,2598.1,2597.8,2.23324]
[1646997318790,3.0,2598.1,2597.8,25.980839]
[1646997318991,3.0,2598.2,2597.9,0.9616]
[1646997319191,3.0,2598.2,2597.9,0.9716]
[1646997319392,1.2375,2598.4,2597.9,0.9716]
[1646997319593,1.2375,2598.4,2597.9,0.9616]
[1646997319594,3.0,2598.2,2597.9,0.9616]
[1646997319793,3.0,2598.2,2598.1,1.0]
[1646997320093,1.2375,2598.4,2598.2,0.96172]
[1646997320292,0.3851,2598.6,2598.2,0.97172]
[1646997320293,3.0,2598.3,2598.2,0.97172]
[1646997320494,3.0,2598.3,2598.2,0.96172]
[1646997320893,3.0,2598.3,2598.2,1.96172]
[1646997321095,4.091893,2598.3,2598.2,1.96172]
[1646997321295,3.0,2598.3,2598.2,1.96172]
[1646997324152,3.02255278,2598.3,2598.2,1.96172]
[1646997329287,3.0,2598.3,2598.2,1.96172]
[1646997331136,0.38887296,2598.4,2598.2,1.96172]
[1646997331336,0.3851,2598.4,2598.2,1.96172]
[1646997331538,0.38887296,2598.4,2598.2,1.96172]
[1646997332542,0.3851,2598.4,2598.2,1.96172]
[1646997332737,0.38887292,2598.4,2598.2,1.96172]
[1646997333636,0.3851,2598.4,2598.2,1.96172]
[1646997334083,0.38888576,2598.4,2598.2,1.96172]
[1646997334583,3.0,2598.3,2598.2,1.96172]
[1646997337387,3.07969816,2598.3,2598.2,1.96172]
[1646997340636,0.07969816,2598.3,2598.2,1.96172]
[1646997342377,0.07818785,2598.3,2598.2,1.96172]
[1646997352529,0.07818785,2598.3,2598.2,22.27352351]
[1646997353732,0.07818785,2598.3,2598.2,22.28352351]
[1646997355134,0.07818785,2598.3,2598.2,18.34078255]
[1646997358387,0.07818785,2598.3,2598.2,18.33078255]
[1646997359188,0.07818785,2598.3,2598.2,18.34078255]
[1646997359587,0.07818785,2598.3,2598.2,19.34078255]
[1646997361634,0.07457385,2598.4,2598.3,4.0]
[1646997361834,7.31512236,2598.8,2598.4,2.88396]
[1646997361835,0.07155084,2598.6,2598.4,2.88396]
[1646997362033,7.31512236,2598.8,2598.5,4.40374096]
[1646997362034,0.01512236,2598.8,2598.5,4.40374096]
[1646997362239,0.1925,2599.0,2598.5,7.32618096]
[1646997362433,3.0,2598.8,2598.5,3.42221]
[1646997362635,3.0,2598.8,2598.5,2.96121]
[1646997362835,3.08049385,2598.7,2598.5,0.96121]
[1646997363035,0.0802645,2598.6,2598.5,0.96121]
[1646997364891,0.0802645,2598.6,2598.5,1.97121]
[1646997367094,0.0802645,2598.6,2598.5,1.97424155]
[1646997367632,3.0,2598.6,2598.5,1.97424155]
[1646997367930,0.3,2598.7,2598.5,1.97424155]
[1646997368131,3.0,2598.6,2598.5,1.97424155]
[1646997371138,0.0037587,2598.9,2598.5,1.97424155]
[1646997371384,3.0,2598.7,2598.5,1.97424155]
[1646997371582,3.3,2598.7,2598.5,1.97424155]
[1646997372284,0.3,2598.7,2598.5,1.97424155]
[1646997372484,3.3,2598.7,2598.5,1.97800095]
[1646997372984,0.00375873,2598.9,2598.5,1.97800095]
[1646997373286,0.00375873,2598.9,2598.8,1.96141]
[1646997373484,3.1925,2599.0,2598.8,1.97141]
[1646997373688,3.1925,2599.0,2598.8,0.97141]
[1646997373689,0.00378155,2598.9,2598.8,0.97141]
[1646997373885,0.00378155,2598.9,2598.8,1.97141]
[1646997374488,3.1925,2599.0,2598.8,1.97141]
[1646997374887,0.19628158,2599.0,2598.8,1.97141]
[1646997375432,3.0,2598.9,2598.8,0.96141]
[1646997375631,0.19628158,2599.0,2598.8,1.96141]
[1646997375833,0.1925,2599.0,2598.8,1.96141]
[1646997376032,0.1925,2599.0,2598.8,0.96141]
[1646997376033,0.19628158,2599.0,2598.8,0.96141]
[1646997376234,0.19628158,2599.0,2598.9,1.0]
[1646997376935,0.19628158,2599.0,2598.9,1.00329888]
[1646997376936,0.1925,2599.0,2598.9,1.00329888]
[1646997377538,0.1925,2599.0,2598.9,1.01329888]
[1646997377937,0.26671331,2599.0,2598.9,1.01329888]
[1646997378539,0.26671331,2599.0,2598.9,1.00329888]
[1646997379289,0.26671331,2599.0,2598.9,1.05312957]
[1646997379789,0.26671331,2599.0,2598.9,1.06312957]
[1646997384636,0.26671331,2599.0,2598.9,1.01329888]
[1646997387285,0.26671331,2599.0,2598.9,1.01427153]
[1646997393531,0.26576251,2599.0,2598.9,1.01427153]
[1646997395490,1.8499699,2599.0,2598.9,1.01427153]
[1646997395685,0.1915492,2599.0,2598.9,1.01427153]
[1646997401684,0.18098674,2599.0,2598.9,1.01427153]
[1646997405836,0.26182303,2599.0,2598.9,1.01427153]
[1646997422656,0.2604249,2599.0,2598.9,1.01427153]
[1646997430437,0.14601739,2599.0,2598.9,1.01427153]
[1646997443734,0.14601739,2599.0,2598.9,1.06598746]
[1646997451333,0.14475766,2599.0,2598.9,1.06598746]
[1646997466340,2.1485486,2599.1,2598.9,1.05598746]
[1646997466540,0.00379094,2599.1,2598.9,0.05598746]
[1646997466740,2.14475766,2599.0,2598.9,0.05598746]
[1646997469395,6.44947862,2599.0,2598.8,0.31263282]
[1646997469596,6.44947862,2599.0,2598.4,0.80340279]
[1646997469597,7.3851,2598.8,2598.4,0.80340279]
[1646997469894,7.3851,2598.8,2597.8,2.0076676]
[1646997469895,1.50833398,2598.6,2598.5,0.0037917]
[1646997470093,1.80833398,2598.6,2598.5,0.0037917]
[1646997470699,0.9619055,2598.5,2598.1,1.0]
[1646997470893,0.9619055,2598.5,2598.4,0.00379163]
[1646997471093,3.10666316,2598.5,2598.4,0.00379163]
[1646997471892,3.10666316,2598.5,2598.1,1.0]
[1646997471893,7.02628412,2598.5,2598.1,1.0]
[1646997472093,7.02628412,2598.5,2598.3,0.00379171]
[1646997473147,0.00982116,2598.2,2598.1,1.0]
[1646997473351,0.00982116,2598.2,2598.1,1.01]
[1646997473753,2.53967882,2598.2,2597.4,2.17372]
[1646997473954,2.53967882,2598.2,2596.9,2.0]
[1646997473955,0.98007443,2597.0,2596.9,2.0]
[1646997474154,0.3851,2597.5,2596.9,1.97214]
[1646997474354,2.14475766,2597.0,2596.9,1.96214]
[1646997474553,2.14475766,2597.0,2596.9,1.97214]
[1646997476897,2.22429959,2597.0,2596.9,1.97833378]
[1646997477093,2.14475766,2597.0,2596.9,1.97833378]
[1646997479701,2.16152323,2597.0,2596.9,1.97833378]
[1646997481743,2.16152323,2597.0,2596.9,1.97214]
[1646997483993,2.16152323,2597.0,2596.9,5.89176096]
[1646997484195,2.16152323,2597.0,2596.9,6.89176096]
[1646997484392,2.16152323,2597.0,2596.9,2.97214]
[1646997484593,2.16152323,2597.0,2596.9,1.97214]
[1646997484794,2.16152323,2597.0,2596.9,2.97214]
[1646997484991,2.16152323,2597.0,2596.9,1.97214]
[1646997485192,2.16152323,2597.0,2596.9,2.97214]
[1646997485392,2.16152323,2597.0,2596.9,1.97214]
[1646997485593,2.16152323,2597.0,2596.9,2.97214]
[1646997485797,2.16152323,2597.0,2596.9,1.97214]
[1646997485992,2.16152323,2597.0,2596.9,2.97214]
[1646997487537,2.23917765,2597.0,2596.9,2.97214]
[1646997488138,2.23917765,2597.0,2596.9,1.97214]
[1646997488744,2.23917765,2597.0,2596.9,1.01]
[1646997490547,2.23917765,2597.0,2596.9,1.0]
[1646997492199,9.0,2596.9,2596.4,2.11339181]
[1646997492400,9.0,2596.9,2596.3,0.17179208]
[1646997492401,0.91704263,2596.4,2596.1,3.0164357]
[1646997492597,0.91704263,2596.4,2596.0,0.40160857]
[1646997492797,2.14475766,2596.2,2596.0,0.40160857]
[1646997492995,0.07392213,2596.1,2595.6,0.00113009]
[1646997493202,0.07392213,2596.1,2595.5,1.92514]
[1646997494501,2.14475766,2595.6,2595.5,1.92514]
[1646997494702,1.44857218,2595.6,2595.5,1.92514]
[1646997494901,1.44857218,2595.6,2595.5,1.93514]
[1646997495344,1.44857218,2595.6,2595.5,1.92514]
[1646997495543,1.44857218,2595.6,2595.5,1.93514]
[1646997495743,1.44857218,2595.6,2595.5,2.92514]
[1646997495948,1.44857218,2595.6,2595.5,3.92514]
[1646997496646,0.07598611,2595.6,2595.5,3.92514]
[1646997497046,0.07598611,2595.6,2595.5,3.93514]
[1646997497246,1.44857218,2595.6,2595.5,3.93514]
[1646997497447,1.172,2596.2,2595.5,3.93514]
[1646997497448,1.25196762,2596.2,2595.5,3.93514]
[1646997497647,1.37258607,2595.6,2595.5,3.92514]
[1646997497847,1.37258607,2595.6,2595.5,3.93514]
[1646997498249,1.37258607,2595.6,2595.5,3.92514]
[1646997498447,1.37258607,2595.6,2595.5,3.93514]
[1646997498448,1.4465885,2595.6,2595.5,3.93514]
[1646997498904,0.07400243,2595.6,2595.5,3.93514]
[1646997499102,1.37258607,2595.6,2595.5,3.93514]
[1646997500199,1.4440119,2595.6,2595.5,3.93514]
[1646997500399,1.37258607,2595.6,2595.5,3.93514]
[1646997501198,1.45059935,2595.6,2595.5,3.92514]
[1646997501399,1.45059935,2595.6,2595.5,3.93514]
[1646997501799,0.9343017,2595.6,2595.5,3.93514]
[1646997502002,0.9343017,2595.6,2595.5,3.92514]
[1646997502203,1.25821599,2596.2,2595.5,3.93514]
[1646997502400,0.07550686,2596.1,2595.5,3.92514]
[1646997502643,0.85628841,2595.6,2595.5,3.92514]
[1646997502840,0.85628841,2595.6,2595.5,3.93514]
[1646997503040,0.85628841,2595.6,2595.5,3.92514]
[1646997503240,0.85628841,2595.6,2595.5,3.93514]
[1646997503442,0.85628841,2595.6,2595.5,3.92514]
[1646997503642,0.85628841,2595.6,2595.5,3.93514]
[1646997503643,0.93372291,2595.6,2595.5,3.93514]
[1646997504045,0.93372291,2595.6,2595.5,3.92514]
[1646997504247,0.93372291,2595.6,2595.5,3.93514]
[1646997504448,0.93372291,2595.6,2595.5,3.92514]
[1646997504650,0.93372291,2595.6,2595.5,3.93514]
[1646997505448,0.93372291,2595.6,2595.5,3.92514]
[1646997505649,0.93372291,2595.6,2595.5,3.93514]
[1646997505848,0.85628841,2595.6,2595.5,3.93514]
[1646997506047,0.85628841,2595.8,2595.5,3.93514]
[1646997506300,0.07895855,2595.7,2595.5,24.203215]
[1646997506490,0.07895855,2595.7,2595.5,3.93514]
[1646997507092,0.07895855,2595.7,2595.5,3.93890871]
[1646997507297,0.07562417,2596.1,2595.5,3.93890871]
[1646997507492,0.07562417,2596.1,2595.5,3.92890871]
[1646997507693,1.172,2596.2,2595.5,3.92890871]
[1646997507694,0.85628841,2595.7,2595.5,3.92890871]
[1646997507895,0.93923882,2595.7,2595.5,3.93514]
[1646997508696,0.60729461,2595.7,2595.5,3.93514]
[1646997509098,0.08295041,2595.7,2595.5,3.93514]
[1646997509298,0.5243442,2595.7,2595.5,3.93514]
[1646997509502,0.60608329,2595.7,2595.5,3.93891986]
[1646997510450,0.60608329,2595.7,2595.5,3.93514]
[1646997510649,0.60608329,2595.7,2595.5,3.93891986]
[1646997511652,0.60608329,2595.7,2595.5,3.92514]
[1646997511851,0.60608329,2595.7,2595.5,3.9389189]
[1646997512657,0.07447361,2595.6,2595.5,3.93514]
[1646997512953,0.07447361,2595.6,2595.5,15.1400019]
[1646997513153,0.07447361,2595.6,2595.5,23.1480019]
[1646997513353,0.07447361,2595.6,2595.5,23.8790019]
[1646997513554,0.06215158,2596.2,2595.5,23.8790019]
[1646997513791,0.39065201,2596.6,2595.5,23.8690019]
[1646997513792,0.0659675,2596.5,2595.5,23.8690019]
[1646997513996,0.0659675,2596.5,2595.5,4.38727009]
[1646997514199,0.0659675,2596.5,2595.7,0.00377869]
[1646997514395,0.0659675,2596.5,2595.9,0.9624]
[1646997515496,0.0659675,2596.5,2596.2,0.96241]
[1646997516599,0.0659675,2596.5,2596.2,0.96618837]
[1646997516798,0.96105941,2596.5,2596.2,0.96618837]
[1646997516998,0.06306876,2596.4,2596.2,0.96618837]
[1646997517643,0.06306876,2596.4,2596.2,0.96241]
[1646997517847,0.06306876,2596.4,2596.2,0.96618841]
[1646997518743,0.06306876,2596.4,2596.2,0.96241]
[1646997518949,0.06306876,2596.4,2596.2,0.96618838]
[1646997519550,0.06306876,2596.4,2596.2,0.00377838]
[1646997519951,0.06306876,2596.4,2595.8,2.93990581]
[1646997519952,0.06306876,2596.4,2595.8,1.92479]
[1646997520153,0.06306876,2596.4,2596.2,0.00377838]
[1646997521293,0.06306876,2596.4,2595.8,1.92479]
[1646997521491,0.06306876,2596.4,2596.2,0.00377838]
[1646997522291,0.06306876,2596.4,2595.8,1.92479]
[1646997522491,1.5407,2596.7,2596.1,0.96243]
[1646997522694,0.06594408,2596.6,2596.2,0.00377839]
[1646997523495,0.06594408,2596.6,2595.8,2.22479]
[1646997523695,0.06594408,2596.6,2596.0,0.96245]
[1646997523898,0.06594408,2596.6,2596.3,0.00377831]
[1646997524197,0.06951141,2596.5,2596.3,0.00377831]
[1646997524899,0.06951141,2596.5,2596.0,0.96245]
[1646997525148,0.06951141,2596.5,2596.3,0.00377831]
[1646997525555,0.3851,2596.4,2596.3,0.00377831]
[1646997525751,4.56015832,2596.4,2596.3,0.00377831]
[1646997525951,4.56015832,2596.4,2595.6,0.00113009]
[1646997526152,4.56015832,2596.4,2595.5,2.92514]
[1646997526153,0.067066,2596.2,2595.5,2.92514]
[1646997526351,0.067066,2596.2,2595.8,0.01511565]
[1646997527152,0.067066,2596.2,2595.8,0.96255]
[1646997527352,0.067066,2596.2,2595.9,0.00377863]
[1646997528551,0.067066,2596.2,2595.8,0.96255]
[1646997529801,0.067066,2596.2,2595.9,0.00377864]
[1646997530802,0.067066,2596.2,2595.8,0.96255]
[1646997531005,0.067066,2596.2,2595.9,0.0037786]
[1646997531908,0.067066,2596.2,2595.8,1.96255]
[1646997532107,0.067066,2596.2,2595.8,1.0]
[1646997532306,0.067066,2596.2,2595.9,0.0037786]
[1646997533153,0.067066,2596.2,2595.8,1.0]
[1646997533350,0.067066,2596.2,2595.9,0.00377451]
[1646997534356,0.067066,2596.2,2595.8,1.0]
[1646997534555,0.067066,2596.2,2595.9,0.00377451]
[1646997535662,0.067066,2596.2,2595.8,1.0]
[1646997535955,0.067066,2596.2,2595.9,0.00377451]
[1646997536399,0.06592009,2596.2,2595.9,0.00377451]
[1646997536802,0.06592009,2596.2,2595.8,1.0]
[1646997537003,0.06592009,2596.2,2595.9,0.00377479]
[1646997537805,0.05732028,2596.4,2595.9,0.00377479]
[1646997538004,0.05732028,2596.4,2595.8,1.0]
[1646997538209,0.05732028,2596.4,2595.9,0.00377479]
[1646997539208,0.05732028,2596.4,2595.8,1.0]
[1646997539407,0.05732028,2596.4,2596.0,0.00377471]
[1646997540446,0.3851,2596.3,2595.8,1.0]
[1646997540649,0.3851,2596.3,2596.1,0.00377465]
[1646997540650,0.06021046,2596.2,2596.1,0.00377465]
[1646997541552,0.06021046,2596.2,2595.5,2.92627009]
[1646997541753,0.06021046,2596.2,2596.0,0.00377469]
[1646997542752,0.02368434,2596.2,2595.5,1.92627009]
[1646997543057,0.03106308,2596.4,2596.1,1.0]
[1646997544298,0.03106308,2596.4,2596.1,1.0037746]
[1646997545098,0.03106308,2596.4,2596.1,1.0]
[1646997545500,0.03106308,2596.4,2596.1,1.0037746]
[1646997546399,0.03106308,2596.4,2596.1,1.0]
[1646997546598,0.03106308,2596.4,2596.1,1.0037746]
[1646997547546,0.74367308,2596.5,2596.1,1.0]
[1646997547745,0.06050238,2596.4,2596.1,1.0]
[1646997547944,0.06050238,2596.4,2596.1,1.00377051]
[1646997548749,0.06050238,2596.4,2596.1,1.0]
[1646997548952,0.06050238,2596.4,2596.1,1.00377051]
[1646997549150,1.1556,2596.7,2596.1,1.00377051]
[1646997549349,0.04768753,2596.6,2596.1,1.00377051]
[1646997549550,0.04768753,2596.6,2596.1,0.00377051]
[1646997549750,0.04768753,2596.6,2596.3,1.0]